fUSD/lending_fUSD_20240820
["ID","MTS","AMOUNT","RATE_DAILY","PERIOD"]
[335344273,1724142638665,-150.0,0.00010778,2]
[335344275,1724142638674,-1068.26154,0.0001079,2]
[335344276,1724142638683,-531.33260631,0.00010799,2]
[335344278,1724142638693,-1542.40918319,0.000108,2]
[335344280,1724142638703,-400.0,0.000108,3]
[335344281,1724142638712,-1025.6241,0.000108,2]
[335344282,1724142638721,-313.92316393,0.000108,2]
[335344283,1724142638733,-500.0,0.00010825,2]
[335344284,1724142638743,-150.0,0.00010826,2]
[335344285,1724142638752,-150.0,0.00010829,2]
[335344286,1724142638761,-150.0,0.0001083,2]
[335344287,1724142638770,-150.0,0.0001084,2]
[335344288,1724142638779,-500.0,0.0001085,2]
[335344289,1724142638788,-150.0,0.00010869,2]
[335344290,1724142638797,-342.41627858,0.00010873,2]
[335344291,1724142638806,-187.6098668,0.00010873,2]
[335344292,1724142638816,-6374.89143983,0.0001088,2]
[335344293,1724142638834,-37381.29050651,0.0001088,2]
[335344294,1724142638843,-150.0,0.00010889,2]
[335344295,1724142638853,-2238.28,0.0001089,2]
[335344296,1724142638862,-4330.3525071,0.00010893,2]
[335344297,1724142638871,-1237.068311,0.00010893,2]
[335344298,1724142638881,-14248.3608525,0.00010893,2]
[335344299,1724142638891,-301.16914393,0.00010894,2]
[335344300,1724142638900,-150.0,0.00010895,2]
[335344301,1724142638909,-492.86681366,0.00010899,2]
[335344302,1724142638918,-500.0,0.00010899,2]
[335344303,1724142638927,-500.0,0.00010899,2]
[335344304,1724142638936,-500.0,0.00010899,2]
[335344305,1724142638946,-500.0,0.00010899,2]
[335344306,1724142638955,-500.0,0.00010899,2]
[335344307,1724142638965,-228.74,0.00010899,2]
[335344308,1724142638974,-500.0,0.00010899,2]
[335344309,1724142638983,-500.0,0.00010899,2]
[335344310,1724142638994,-500.0,0.00010899,2]
[335344311,1724142639004,-500.0,0.00010899,2]
[335344312,1724142639014,-523.23411463,0.00010899,2]
[335344313,1724142639026,-500.0,0.00010899,2]
[335344314,1724142639036,-500.0,0.00010899,2]
[335344315,1724142639045,-500.0,0.00010899,2]
[335344316,1724142639054,-500.0,0.00010899,2]
[335344317,1724142639064,-500.0,0.00010899,2]
[335344318,1724142639074,-222.63443899,0.00010899,2]
[335344319,1724142639083,-500.0,0.00010899,2]
[335344320,1724142639097,-500.0,0.00010899,2]
[335344321,1724142639106,-500.0,0.00010899,2]
[335344322,1724142639117,-500.0,0.00010899,2]
[335344323,1724142639127,-500.0,0.00010899,2]
[335344324,1724142639137,-187.39620617,0.00010899,2]
[335344325,1724142639147,-500.0,0.00010899,2]
[335344326,1724142639156,-500.0,0.00010899,2]
[335344327,1724142639167,-500.0,0.00010899,2]
[335344328,1724142639178,-500.0,0.00010899,2]
[335344329,1724142639188,-500.0,0.00010899,2]
[335344330,1724142639197,-500.0,0.00010899,2]
[335344331,1724142639206,-500.0,0.00010899,2]
[335344332,1724142639215,-500.0,0.00010899,2]
[335344333,1724142639225,-500.0,0.00010899,2]
[335344334,1724142639235,-500.0,0.00010899,2]
[335344335,1724142639246,-500.0,0.00010899,2]
[335344336,1724142639255,-597.29620133,0.00010899,2]
[335344337,1724142639265,-500.0,0.00010899,2]
[335344338,1724142639275,-500.0,0.00010899,2]
[335344339,1724142639285,-500.0,0.00010899,2]
[335344340,1724142639295,-500.0,0.00010899,2]
[335344341,1724142639305,-500.0,0.00010899,2]
[335344342,1724142639314,-500.0,0.00010899,2]
[335344343,1724142639323,-500.0,0.00010899,2]
[335344344,1724142639333,-500.0,0.00010899,2]
[335344345,1724142639342,-500.0,0.00010899,2]
[335344346,1724142639351,-500.0,0.00010899,2]
[335344347,1724142639360,-500.0,0.00010899,2]
[335344348,1724142639370,-607.51,0.00010899,2]
[335344349,1724142639379,-500.0,0.00010899,2]
[335344350,1724142639389,-530.62687702,0.00010899,2]
[335344351,1724142639399,-361.06901889,0.00010899,2]
[335344352,1724142639408,-1622.41491742,0.00010899,2]
[335344353,1724142639418,-1622.41491738,0.00010899,2]
[335344354,1724142639427,-1622.41491738,0.00010899,2]
[335344355,1724142639437,-1622.41491738,0.00010899,2]
[335344356,1724142639446,-1622.41491738,0.00010899,2]
[335344357,1724142639458,-1622.41491738,0.00010899,2]
[335344358,1724142639467,-1622.41491738,0.00010899,2]
[335344359,1724142639478,-1622.41491738,0.00010899,2]
[335344360,1724142639490,-1622.41491738,0.00010899,2]
[335344361,1724142639500,-500.0,0.00010899,2]
[335344362,1724142639509,-500.0,0.00010899,2]
[335344363,1724142639519,-500.0,0.00010899,2]
[335344364,1724142639529,-500.0,0.00010899,2]
[335344365,1724142639538,-500.0,0.00010899,2]
[335344366,1724142639548,-427.72842261,0.00010899,2]
[335344367,1724142639558,-348.26413265,0.00010899,2]
[335344368,1724142639567,-1465900.71588053,0.000109,2]
[335344369,1724142639577,-2007.97,0.000109,2]
[335344370,1724142639587,-2000.0,0.000109,2]
[335344371,1724142639597,-163.1411883,0.000109,2]
[335344372,1724142639606,-341.16250447,0.000109,4]
[335344373,1724142639616,-413.32982156,0.000109,2]
[335344374,1724142639625,-300.16274055,0.000109,2]
[335344375,1724142639635,-2034.5297906,0.000109,2]
[335344376,1724142639645,-1051.141743,0.000109,2]
[335344377,1724142639654,-170.62038791,0.000109,2]
[335344378,1724142639664,-1019.36405489,0.000109,2]
[335344379,1724142639673,-501.53476075,0.000109,2]
[335344380,1724142639683,-835.0,0.000109,3]
[335344381,1724142639693,-1622.41491738,0.000109,2]
[335344382,1724142639702,-295.96857258,0.000109,2]
[335344383,1724142639713,-247.43074706,0.000109,2]
[335344384,1724142639723,-578.92,0.0001092,2]
[335344385,1724142639733,-160.6,0.0001093,2]
[335344386,1724142639742,-500.0,0.00010939,2]
[335344387,1724142639752,-241.24016473,0.00010939,2]
[335344388,1724142639762,-153.311,0.0001094,2]
[335344389,1724142639771,-1895.0,0.0001094,2]
[335344390,1724142639781,-559.49,0.0001094,2]
[335344391,1724142639790,-1178.0,0.0001094,2]
[335344392,1724142639800,-247.0,0.0001094,2]
[335344393,1724142639810,-3319.0,0.0001094,2]
[335344394,1724142639820,-764.0,0.0001094,2]
[335344395,1724142639829,-1077.0,0.0001094,2]
[335344396,1724142639839,-1257.0,0.0001094,2]
[335344397,1724142639848,-5843.0,0.0001094,2]
[335344398,1724142639858,-1542.0,0.0001094,2]
[335344399,1724142639868,-1923.0,0.0001094,2]
[335344400,1724142639877,-315.235,0.0001094,2]
[335344401,1724142639887,-622.0,0.0001094,2]
[335344402,1724142639896,-155.0,0.00010949,2]
[335344403,1724142639905,-150.612,0.0001095,2]
[335344404,1724142639914,-153.0,0.0001095,2]
[335344405,1724142639923,-286.683,0.0001095,2]
[335344406,1724142639932,-200.0,0.0001095,2]
[335344407,1724142639942,-150.392,0.0001095,2]
[335344408,1724142639952,-175.82584886,0.00010958,2]
[335344409,1724142639962,-198.34310716,0.00010958,2]
[335344410,1724142639971,-195.36205429,0.00010958,2]
[335344411,1724142639980,-415.28,0.00010959,2]
[335344412,1724142639990,-154434.0,0.00010959,2]
[335344413,1724142640000,-1500.0,0.00010959,2]
[335344414,1724142640010,-151.94,0.00010959,2]
[335344415,1724142640019,-250.0,0.00010959,2]
[335344416,1724142640029,-5575.04,0.00010959,2]
[335344417,1724142640039,-150.0,0.00010959,2]
[335344418,1724142640048,-2000.0,0.00010959,2]
[335344419,1724142640058,-482.34,0.00010959,2]
[335344420,1724142640067,-401.95,0.00010959,2]
[335344421,1724142640076,-334.96,0.00010959,2]
[335344422,1724142640085,-279.13,0.00010959,2]
[335344423,1724142640098,-279.13,0.00010959,2]
[335344424,1724142640107,-186.09,0.00010959,2]
[335344425,1724142640117,-155.07,0.00010959,2]
[335344426,1724142640127,-775.38,0.00010959,2]
[335344427,1724142640137,-412.07367002,0.00010959,2]
[335344428,1724142640147,-500.0,0.0001096,2]
[335344429,1724142640157,-500.0,0.0001096,2]
[335344430,1724142640166,-500.0,0.0001096,2]
[335344431,1724142640177,-500.0,0.0001096,2]
[335344432,1724142640187,-536.86,0.00010964,2]
[335344433,1724142640196,-500.0,0.00010964,2]
[335344434,1724142640206,-4072.8760733,0.00010965,2]
[335344435,1724142640215,-3815.3996395,0.00010965,2]
[335344436,1724142640224,-3557.9232058,0.00010965,2]
[335344437,1724142640234,-3300.446772,0.00010965,2]
[335344438,1724142640243,-3042.9703383,0.00010965,2]
[335344439,1724142640253,-1162.5835999,0.00010965,2]
[335344440,1724142640263,-1088.0988888,0.00010965,2]
[335344441,1724142640273,-1013.6141778,0.00010965,2]
[335344442,1724142640282,-939.1294667,0.00010965,2]
[335344443,1724142640291,-864.6447556,0.00010965,2]
[335344444,1724142640301,-13359.4016744,0.00010965,2]
[335344445,1724142640310,-12470.4424963,0.00010965,2]
[335344446,1724142640319,-11581.4833182,0.00010965,2]
[335344447,1724142640328,-10692.5241401,0.00010965,2]
[335344448,1724142640337,-9803.564962,0.00010965,2]
[335344449,1724142640347,-500.0,0.00010971,2]
[335344450,1724142640357,-535.2547558,0.00010971,2]
[335344451,1724142640367,-151.0,0.00010972,2]
[335344452,1724142640376,-151.0,0.00010972,2]
[335344453,1724142640385,-5003.795176,0.00010972,2]
[335344454,1724142640395,-5003.795176,0.00010972,2]
[335344455,1724142640404,-151.0,0.00010972,2]
[335344456,1724142640414,-151.0,0.00010972,2]
[335344457,1724142640424,-151.0,0.00010972,2]
[335344458,1724142640433,-151.0,0.00010972,2]
[335344459,1724142640443,-320854.71327377,0.00010972,2]
[335344460,1724142640456,-636.74999999,0.00010972,2]
[335344461,1724142640557,337.68472142,8.219e-05,2]
[335344462,1724142640585,2.60527858,8.219e-05,2]
[335344471,1724142640687,-353.51434234,9.988e-05,2]
[335344473,1724142640696,-203.77747582,0.00010009,2]
[335344475,1724142640706,-307.90693662,0.00010097,2]
[335344477,1724142640716,-340.29,0.00010459,2]
[335344478,1724142640726,-711.12064294,0.0001094,2]
[335344493,1724142640923,-505.11335706,0.0001094,2]
[335344494,1724142640934,-2657.48664302,0.00010972,2]
[335344495,1724142640945,-326.22319824,0.00010972,2]
[335344496,1724142640960,-327.80477187,0.00010972,2]
[335344497,1724142640972,-645.18180464,0.00010972,2]
[335344498,1724142642537,-941996.53076516,0.00010972,2]
[335344499,1724142642547,-1499999.00000001,0.00010973,2]
[335344500,1724142642556,-200.0,0.00010973,2]
[335344501,1724142642565,-151.0,0.00010973,2]
[335344502,1724142642575,-151.0,0.00010973,2]
[335344503,1724142642585,-151.0,0.00010973,2]
[335344504,1724142642594,-151.0,0.00010973,2]
[335344505,1724142642603,-151.0,0.00010973,2]
[335344506,1724142642613,-151.0,0.00010973,2]
[335344507,1724142642622,-151.0,0.00010973,2]
[335344508,1724142642631,-159.872886,0.00010973,2]
[335344509,1724142642641,-159.872886,0.00010973,2]
[335344510,1724142642650,-163.686916,0.00010973,2]
[335344511,1724142642660,-163.686916,0.00010973,2]
[335344512,1724142642669,-151.0,0.00010973,2]
[335344513,1724142642679,-151.0,0.00010973,2]
[335344514,1724142642688,-151.0,0.00010973,2]
[335344515,1724142642697,-454.105736,0.00010973,2]
[335344517,1724142642707,-454.105736,0.00010973,2]
[335344518,1724142642716,-151.0,0.00010973,2]
[335344519,1724142642725,-232.471205,0.00010973,2]
[335344520,1724142642735,-232.471205,0.00010973,2]
[335344521,1724142642744,-151.0,0.00010973,2]
[335344522,1724142642754,-151.0,0.00010973,2]
[335344523,1724142642764,-151.0,0.00010973,2]
[335344524,1724142642773,-151.0,0.00010973,2]
[335344525,1724142642783,-151.0,0.00010973,2]
[335344526,1724142642792,-163.039081,0.00010973,2]
[335344527,1724142642803,-163.039081,0.00010973,2]
[335344528,1724142642813,-151.0,0.00010973,2]
[335344529,1724142642823,-152.006264,0.00010973,2]
[335344530,1724142642832,-151.0,0.00010973,2]
[335344531,1724142642841,-151.0,0.00010973,2]
[335344532,1724142642850,-151.0,0.00010973,2]
[335344533,1724142642860,-151.0,0.00010973,2]
[335344534,1724142642869,-319.969907,0.00010973,2]
[335344535,1724142642879,-151.0,0.00010973,2]
[335344536,1724142642890,-151.471725,0.00010973,2]
[335344537,1724142642900,-319.969907,0.00010973,2]
[335344538,1724142642912,-151.0,0.00010973,2]
[335344539,1724142642921,-151.0,0.00010973,2]
[335344541,1724142642930,-151.0,0.00010973,2]
[335344543,1724142642939,-151.0,0.00010973,2]
[335344545,1724142642950,-151.0,0.00010973,2]
[335344547,1724142642959,-211.012839,0.00010973,2]
[335344549,1724142642967,-151.0,0.00010973,2]
[335344551,1724142642976,-211.012839,0.00010973,2]
[335344552,1724142642986,-151.0,0.00010973,2]
[335344553,1724142642995,-151.0,0.00010973,2]
[335344554,1724142643004,-151.0,0.00010973,2]
[335344555,1724142643013,-647.83713,0.00010973,2]
[335344556,1724142643022,-647.83713,0.00010973,2]
[335344557,1724142643031,-151.274944,0.00010973,2]
[335344558,1724142643042,-151.0,0.00010973,2]
[335344559,1724142643051,-151.0,0.00010973,2]
[335344560,1724142643061,-5003.795176,0.00010973,2]
[335344561,1724142643070,-5003.795176,0.00010973,2]
[335344562,1724142643079,-151.0,0.00010973,2]
[335344563,1724142643089,-243.046705,0.00010973,2]
[335344564,1724142643102,-151.0,0.00010973,2]
[335344565,1724142643112,-151.0,0.00010973,2]
[335344566,1724142643121,-151.0,0.00010973,2]
[335344567,1724142643130,-151.0,0.00010973,2]
[335344568,1724142643140,-151.0,0.00010973,2]
[335344569,1724142643150,-151.0,0.00010973,2]
[335344570,1724142643160,-151.0,0.00010973,2]
[335344571,1724142643169,-182.707321,0.00010973,2]
[335344572,1724142643179,-182.707321,0.00010973,2]
[335344573,1724142643189,-151.0,0.00010973,2]
[335344574,1724142643199,-420.0,0.00010985,2]
[335344575,1724142643209,-201.226221,0.00010986,2]
[335344576,1724142643219,-4098.05781624,0.00010998,2]
[335344577,1724142643228,-4156.61058964,0.00010999,2]
[335344578,1724142643237,-380.76709733,0.00010999,2]
[335344579,1724142643246,-4518.57330594,0.00010999,2]
[335344580,1724142643256,-1740.58702066,0.00010999,2]
[335344581,1724142643266,-155.38649312,0.00010999,2]
[335344582,1724142643275,-502.64,0.00011,5]
[335344583,1724142643284,-500.0,0.00011,5]
[335344584,1724142643294,-4216754.21397101,0.00011,2]
[335344585,1724142643306,-1352.59422969,0.00011,2]
[335344586,1724142643317,-1529.43690522,0.00011,2]
[335344587,1724142643329,-65076.82359592,0.00011,2]
[335344588,1724142643344,-1015.75187423,0.00011,2]
[335344589,1724142643873,-529.89907547,0.0001089,2]
[335344590,1724142643882,-3727.0,0.0001094,2]
[335344591,1724142643892,-24201.34442794,0.00011,2]
[335344592,1724142643902,-112381.48572888,0.00011,2]
[335344610,1724142646165,-353.36301051,0.00010958,2]
[335344611,1724142646176,-725.6072282,0.00011,2]
[335344612,1724142646224,-377.3232488,0.00011,2]
[335344613,1724142646335,-912.85999773,0.00011,2]
[335344619,1724142695640,500.0,8.22e-05,2]
[335344620,1724142695771,500.0,8.22e-05,2]
[335344622,1724142716462,500.0,8.22e-05,2]
[335344623,1724142721419,500.0,8.22e-05,2]
[335344624,1724142721454,500.0,8.22e-05,2]
[335344630,1724142780351,677.88,9.68e-05,2]
[335344653,1724143076527,203.03298078,9.899e-05,2]
[335344656,1724143105095,361.94,8.219e-05,2]
[335344666,1724143248420,457.69,9.845e-05,2]
[335344670,1724143284983,166.4,9.803e-05,2]
[335344688,1724143528591,949.4543693,9.899e-05,2]
[335344762,1724143600229,365.19,8.219e-05,2]
[335344774,1724143729468,150.0,7.804e-05,2]
[335344777,1724143757127,633.84,9.701e-05,2]
[335344778,1724143764056,26166.76980326,9.899e-05,2]
[335344787,1724143795071,162.05,9.702e-05,2]
[335344795,1724143832101,-155.0,9.929e-05,2]
[335344797,1724143832111,-1258.20462876,9.943e-05,2]
[335344799,1724143832120,-194.50301564,9.943e-05,2]
[335344801,1724143832130,-1444.8273586,9.985e-05,2]
[335344803,1724143832139,-166.81,9.985e-05,2]
[335344805,1724143832148,-150.0,9.987e-05,2]
[335344806,1724143832157,-341.16250447,0.0001,4]
[335344807,1724143832167,-162.83970432,0.0001,2]
[335344808,1724143832176,-277.63574042,0.00010009,2]
[335344809,1724143832185,-1298.45974265,0.00010009,2]
[335344810,1724143832194,-507.61773081,0.00010026,2]
[335344811,1724143832203,-211.03413449,0.00010026,2]
[335344812,1724143832213,-300.0,0.00010096,2]
[335344813,1724143832222,-656.29306752,0.00010097,2]
[335344814,1724143832231,-1129.43603184,0.00010097,2]
[335344815,1724143832241,-1997.2,0.00010097,2]
[335344816,1724143832250,-421.4,0.000101,2]
[335344817,1724143832259,-420.68,0.000101,2]
[335344818,1724143832268,-210.52,0.00010299,2]
[335344819,1724143832277,-531.44,0.000103,2]
[335344820,1724143832287,-150.0,0.000103,2]
[335344821,1724143832296,-421.4,0.000103,2]
[335344822,1724143832305,-529.06,0.000103,2]
[335344823,1724143832314,-421.4,0.000103,2]
[335344824,1724143832323,-150.0,0.00010329,2]
[335344825,1724143832332,-10000.0,0.00010396,2]
[335344826,1724143832341,-150.0,0.000104,2]
[335344827,1724143832351,-531.44,0.000104,2]
[335344828,1724143832360,-421.4,0.000104,2]
[335344829,1724143832369,-150.0,0.000104,2]
[335344830,1724143832378,-626.39,0.000104,2]
[335344832,1724143832388,-531.44,0.000104,2]
[335344834,1724143832397,-421.4,0.000104,2]
[335344835,1724143832406,-365.19,0.00010466,2]
[335344837,1724143832415,-175.81263979,0.00010471,2]
[335344839,1724143832424,-164.66981099,0.00010471,2]
[335344841,1724143832434,-459.87597912,0.00010471,2]
[335344843,1724143832444,-23737.16126312,0.00010495,2]
[335344845,1724143832453,-815.32,0.00010505,2]
[335344847,1724143832464,-299.99,0.00010505,2]
[335344849,1724143832474,-9999.99,0.00010505,2]
[335344851,1724143832486,-1321.45533728,0.00010505,2]
[335344853,1724143832495,-1000.0,0.00010699,2]
[335344854,1724143832504,-499.99,0.00010699,2]
[335344855,1724143832514,-2500.0,0.00010733,2]
[335344856,1724143832524,-150.0,0.00010745,2]
[335344857,1724143832533,-150.0,0.00010756,2]
[335344858,1724143832542,-150.0,0.00010757,2]
[335344859,1724143832551,-150.0,0.0001076,2]
[335344860,1724143832563,-150.0,0.00010763,2]
[335344861,1724143832573,-150.0,0.00010763,2]
[335344862,1724143832582,-150.0,0.00010771,2]
[335344863,1724143832592,-150.0,0.00010791,2]
[335344864,1724143832601,-150.0,0.00010791,2]
[335344865,1724143832618,-93475.81236723,0.00010799,2]
[335344866,1724143832985,-763.37704292,0.00010097,2]
[335344867,1724143832994,-5399.42174724,0.00010799,2]
[335344868,1724143833009,-9380.93148553,0.00010799,2]
[335344869,1724143833018,-203.03298078,0.00010799,2]
[335344870,1724143833027,-169.04061562,0.000108,2]
[335344871,1724143833037,-150.0,0.00010811,2]
[335344872,1724143833046,-150.0,0.00010815,2]
[335344873,1724143833056,-150.0,0.00010818,2]
[335344874,1724143833066,-150.0,0.00010826,2]
[335344875,1724143833075,-150.0,0.00010835,2]
[335344876,1724143833084,-371.26341302,0.0001084,2]
[335344877,1724143833094,-209.81001915,0.00010843,2]
[335344945,1724143840367,-155.0,9.91e-05,2]
[335344946,1724143840376,-161.45339387,0.00010843,2]
[335344947,1724143840387,-3607.5151,0.00010849,2]
[335344948,1724143840397,-531.33260631,0.00010852,2]
[335344949,1724143840406,-522.9745894,0.00010852,2]
[335344950,1724143840415,-150.0,0.00010853,2]
[335344951,1724143840425,-371.26341302,0.00010861,2]
[335344952,1724143840434,-371.26341302,0.00010866,2]
[335344953,1724143840443,-150.0,0.00010867,2]
[335344954,1724143840452,-371.26341302,0.0001087,2]
[335344955,1724143840462,-371.26341302,0.00010871,2]
[335344956,1724143840472,-150.0,0.00010872,2]
[335344957,1724143840484,-371.26341302,0.00010875,2]
[335344958,1724143840493,-371.26341302,0.00010878,2]
[335344959,1724143840502,-150.0,0.00010881,2]
[335344960,1724143840511,-500.0,0.00010886,2]
[335344961,1724143840520,-1670.44654337,0.00010888,2]
[335344962,1724143840531,-2500.0,0.0001089,2]
[335344963,1724143840545,-150.0,0.00010897,2]
[335344964,1724143840554,-500.0,0.00010898,2]
[335344965,1724143840565,-500.0,0.00010899,2]
[335344966,1724143840575,-500.0,0.00010899,2]
[335344967,1724143840584,-500.0,0.00010899,2]
[335344968,1724143840593,-500.0,0.00010899,2]
[335344969,1724143840603,-486.48,0.00010899,2]
[335344970,1724143840612,-300.0,0.00010899,2]
[335344971,1724143840622,-154.20518765,0.00010899,2]
[335344972,1724143840631,-155.0,0.00010899,2]
[335344973,1724143840642,-158.70892662,0.000109,2]
[335344974,1724143840652,-158.70892657,0.000109,2]
[335344975,1724143840661,-158.70892657,0.000109,2]
[335344976,1724143840670,-158.70892657,0.000109,2]
[335344977,1724143840681,-158.70892657,0.000109,2]
[335344978,1724143840690,-158.70892657,0.000109,2]
[335344979,1724143840699,-591.93714518,0.000109,2]
[335344980,1724143840708,-1042.34016643,0.000109,2]
[335344981,1724143840719,-633.84,0.00010913,2]
[335344982,1724143840728,-500.0,0.0001092,2]
[335344983,1724143840738,-150.0,0.00010927,2]
[335344984,1724143840747,-150.0,0.00010938,2]
[335344985,1724143840756,-500.0,0.00010939,2]
[335344986,1724143840765,-500.0,0.00010939,2]
[335344987,1724143840774,-500.0,0.00010939,2]
[335344988,1724143840783,-500.0,0.00010939,2]
[335344989,1724143840793,-500.0,0.00010939,2]
[335344990,1724143840802,-500.0,0.00010939,2]
[335344991,1724143840812,-500.0,0.00010939,2]
[335344992,1724143840821,-500.0,0.00010939,2]
[335344993,1724143840830,-500.0,0.00010939,2]
[335344994,1724143840839,-1137.0,0.0001094,2]
[335344995,1724143840848,-573.0,0.0001094,2]
[335344996,1724143840857,-247.0,0.0001094,2]
[335344997,1724143840867,-3125.336,0.0001094,2]
[335344998,1724143840876,-21761.0,0.0001094,2]
[335344999,1724143840885,-150.0,0.0001094,2]
[335345000,1724143840895,-150.0,0.00010943,2]
[335345001,1724143840905,-150.0,0.00010949,2]
[335345002,1724143840916,-150.0,0.00010955,2]
[335345003,1724143840925,-150.0,0.00010957,2]
[335345004,1724143840933,-394.51,0.00010959,2]
[335345005,1724143840943,-1500.0,0.00010959,2]
[335345006,1724143840952,-150.0,0.00010959,2]
[335345007,1724143840962,-793.09,0.00010959,2]
[335345008,1724143840971,-250.0,0.00010959,2]
[335345009,1724143840980,-500.0,0.00010959,2]
[335345010,1724143840990,-500.0,0.0001096,2]
[335345011,1724143840999,-500.0,0.0001096,2]
[335345012,1724143841009,-500.0,0.0001096,2]
[335345013,1724143841018,-500.0,0.0001096,2]
[335345014,1724143841028,-500.0,0.0001096,2]
[335345015,1724143841038,-150.0,0.0001096,2]
[335345016,1724143841047,-150.0,0.00010975,2]
[335345017,1724143841057,-500.0,0.00010978,2]
[335345018,1724143841066,-500.0,0.00010978,2]
[335345019,1724143841075,-198.26413265,0.00010978,2]
[335345020,1724143841085,-500.0,0.00010978,2]
[335345021,1724143841094,-648.9231726,0.00010979,2]
[335345022,1724143841103,-150.0,0.00010982,2]
[335345023,1724143841112,-150.0,0.00010982,2]
[335345024,1724143841122,-150.0,0.00010982,2]
[335345025,1724143841131,-255.0,0.00010985,2]
[335345026,1724143841140,-304.12480458,0.00010989,2]
[335345027,1724143841149,-200.95640832,0.00010999,3]
[335345028,1724143841159,-500.0,0.00010999,2]
[335345029,1724143841168,-500.0,0.00010999,2]
[335345030,1724143841177,-500.0,0.00010999,2]
[335345032,1724143841186,-500.0,0.00010999,2]
[335345034,1724143841196,-500.0,0.00010999,2]
[335345035,1724143841205,-500.0,0.00010999,2]
[335345036,1724143841216,-500.0,0.00010999,2]
[335345037,1724143841225,-500.0,0.00010999,2]
[335345038,1724143841235,-500.0,0.00010999,2]
[335345040,1724143841245,-470.34118482,0.00010999,2]
[335345042,1724143841254,-500.0,0.00010999,2]
[335345044,1724143841263,-500.0,0.00010999,2]
[335345046,1724143841272,-500.0,0.00010999,2]
[335345047,1724143841281,-500.0,0.00010999,2]
[335345049,1724143841290,-500.0,0.00010999,2]
[335345051,1724143841300,-449.74809,0.00010999,2]
[335345053,1724143841309,-500.0,0.00010999,2]
[335345055,1724143841318,-500.0,0.00010999,2]
[335345057,1724143841327,-500.0,0.00010999,2]
[335345059,1724143841336,-500.0,0.00010999,2]
[335345060,1724143841345,-526.70013392,0.00010999,2]
[335345062,1724143841354,-500.0,0.00010999,2]
[335345065,1724143841364,-500.0,0.00010999,2]
[335345067,1724143841373,-500.0,0.00010999,2]
[335345069,1724143841383,-500.0,0.00010999,2]
[335345071,1724143841392,-500.0,0.00010999,2]
[335345072,1724143841402,-500.0,0.00010999,2]
[335345075,1724143841411,-500.0,0.00010999,2]
[335345077,1724143841420,-500.0,0.00010999,2]
[335345079,1724143841430,-500.0,0.00010999,2]
[335345081,1724143841439,-605.67124,0.00010999,2]
[335345083,1724143841450,-500.0,0.00010999,2]
[335345085,1724143841459,-500.0,0.00010999,2]
[335345087,1724143841469,-500.0,0.00010999,2]
[335345089,1724143841478,-500.0,0.00010999,2]
[335345091,1724143841492,-500.0,0.00010999,2]
[335345093,1724143841501,-500.0,0.00010999,2]
[335345094,1724143841510,-646.26399363,0.00010999,2]
[335345095,1724143841519,-500.0,0.00010999,2]
[335345096,1724143841530,-500.0,0.00010999,2]
[335345097,1724143841539,-500.0,0.00010999,2]
[335345098,1724143841548,-500.0,0.00010999,2]
[335345099,1724143841558,-485.18083854,0.00010999,2]
[335345100,1724143841568,-500.0,0.00010999,2]
[335345101,1724143841577,-500.0,0.00010999,2]